Workbook

Sheet MSU
B1: Robert Tallbacka | E1: 13.2.1991 Alajärvi
B2: SUPERPESIS | E2: Runkosarja | I2: Kärkilyönnit (KL), pesänvälit | P2: Runkosarja TOP-30 | U2: Ylempi loppusarja | AB2: Ylempi loppusarja TOP-10 | AG2: Play off, voitot, voittoprosentti | AL2: Arvo-ottelut | AO2: Mitalit
B3: Vuosi | C3: Sija | D3: Seura | E3: OTT | F3: KUN | G3: LÖI | H3: TOI | I3: KL | J3: 0 > 1 | K3: 1 > 2 | L3: 2 > 3 | M3: 3 > k | N3: KL-% | P3: LÖI | Q3: TOI | R3: L+T | S3: KL | U3: OTT | V3: KUN | W3: LÖI | X3: TOI | Y3: KL | Z3: KL-% | AB3: LÖI | AC3: TOI | AD3: L+T | AE3: KL | AG3: Puolivälierät | AH3: Välierät | AI3: Pronssi | AJ3: Finaalit | AL3: IL | AM3: LL | AN3: hSM | AO3: K | AP3: H | AQ3: P
B4: 2008 | C4: 3. | D4: KoU 2 | F4: suomensarja
B5: 2008 | C5: 10. | D5: AA | F5: ykköspesis
B6: 2009 | C6: 10. | D6: AA 2 | F6: suomensarja
B7: 2009 | C7: 8. | D7: AA | F7: ykköspesis
B8: 2010 | C8: 9. | D8: AA 2 | F8: suomensarja
B9: 2010 | C9: 2. | D9: AA | F9: ykköspesis
B10: 2011 | C10: 1. | D10: AA | F10: ykköspesis
B11: 2012
B12: 2013 | C12: 7. | D12: AA 2 | F12: suomensarja
B13: 2013 | C13: 12. | D13: HP-K | F13: ykköspesis
B14: 2013 | C14: 12. | D14: AA | E14: 11 | F14: 0 | G14: 4 | H14: 2 | I14: 39 | J14: 1 | K14: 21 | L14: 13 | M14: 4 | N14: 54.9 % | O14: =PRODUCT(I14/N14) -> 71.01238165
B15: 2014 | C15: 12. | D15: Kiri | E15: 25 | F15: 1 | G15: 7 | H15: 9 | I15: 75 | J15: 5 | K15: 20 | L15: 42 | M15: 8 | N15: 49.7 % | O15: =PRODUCT(I15/N15) -> 150.9054326
B16: 2015
B17: 2016 | D17: KiPa | F17: halliturnaus
B18: 2017 | C18: 8. | D18: LieKi | F18: ykköspesis
B19: 2017 | C19: 7. | D19: KiPa | E19: 22 | F19: 0 | G19: 14 | H19: 1 | I19: 34 | J19: 0 | K19: 7 | L19: 13 | M19: 14 | N19: 42.5 % | O19: 80 | U19: 3 | V19: 0 | W19: 4 | X19: 1 | Y19: 6 | Z19: 50.0 % | AG19: 0-3 ViVe
B20: Yhteensä | E20: =SUM(E4:E19) -> 58 | F20: 1 | G20: 25 | H20: 12 | I20: 148 | J20: 6 | K20: 48 | L20: 68 | M20: 26 | N20: =PRODUCT(I20/O20) -> 49.0 % | O20: =SUM(O3:O19) -> 301.9178142 | P20: 0-0-0 | Q20: 0-0-0 | R20: 0-0-0 | S20: 0-0-0 | U20: =SUM(U19) -> 3 | V20: 0 | W20: 4 | X20: 1 | Y20: 6 | Z20: 50.0 % | AB20: 0-0-0 | AC20: 0-0-0 | AD20: 0-0-0 | AE20: 0-0-0 | AG20: 0/1 | AH20: 0/0 | AI20: 0/0 | AJ20: 0/0 | AL20: =SUM(AL4:AL19) -> 0 | AM20: 0 | AN20: 0 | AO20: 0 | AP20: 0 | AQ20: 0
AG21: 0.0 % | AH21: 0.0 % | AI21: 0.0 % | AJ21: 0.0 %
B22: Pesispörssi | D22: =SUM(F20:H20)+((I20-F20-G20)/3)+(E20/3)+(AL20*25)+(AM20*25)+(AN20*10)+(AO20*25)+(AP20*20)+(AQ20*15) -> 98.0
B24: URA SUPERISSA | E24: OTT | F24: KUN | G24: LÖI | H24: TOI | I24: KL | K24: ka/L | L24: ka/T | M24: ka/KL | N24: KL-% | P24: ENSIMMÄISET RUNKOSARJASSA | AG24: ENSIMMÄISET PUDOTUSPELEISSÄ | AL24: YLEISÖ
B25: Runkosarja | E25: =PRODUCT(E20) -> 58 | F25: =PRODUCT(F20) -> 1 | G25: =PRODUCT(G20) -> 25 | H25: =PRODUCT(H20) -> 12 | I25: =PRODUCT(I20) -> 148 | K25: =PRODUCT((F25+G25)/E25) -> 0.45 | L25: =PRODUCT(H25/E25) -> 0.21 | M25: =PRODUCT(I25/E25) -> 2.55 | N25: =PRODUCT(N20) -> 49.0 % | O25: =PRODUCT(O20) -> 301.9178142 | P25: Ottelu | R25: 09.06. 2013 AA - JymyJussit 1-0 (0-0, 5-2) | Z25: 1. ottelu | AD25: 22 v 3 kk 27 pv | AG25: Ottelu | AH25: 1. 20.08. 2017 ViVe - KiPa 2-0 | AL25: 1746 | AN25: 26 v 6 kk 7 pv
B26: Ylempi loppusarja | E26: 3 | F26: 0 | G26: 4 | H26: 1 | I26: 6 | K26: =PRODUCT((F26+G26)/E26) -> 1.33 | L26: =PRODUCT(H26/E26) -> 0.33 | M26: =PRODUCT(I26/E26) -> 2.00 | N26: 50.0 % | O26: 12 | P26: Lyöty | R26: 18.07. 2013 JymyJussit - AA 2-0 (3-1, 6-2) | Z26: 5. ottelu | AD26: 22 v 5 kk 5 pv | AG26: Lyöty | AH26: 1. 20.08. 2017 ViVe - KiPa 2-0 | AL26: 1746 | AN26: 26 v 6 kk 7 pv
B27: Alempi loppusarja | E27: 4 | F27: 0 | G27: 1 | H27: 0 | I27: 15 | K27: =PRODUCT((F27+G27)/E27) -> 0.25 | L27: =PRODUCT(H27/E27) -> 0.00 | M27: =PRODUCT(I27/E27) -> 3.75 | N27: =PRODUCT(I27/O27) -> 62.5 % | O27: 24 | P27: Tuotu | R27: 01.08. 2013 AA - Kiri 2-0 (4-2, 1-0) | Z27: 9. ottelu | AD27: 22 v 5 kk 19 pv | AG27: Tuotu | AH27: 1. 20.08. 2017 ViVe - KiPa 2-0 | AL27: 1746 | AN27: 26 v 6 kk 7 pv
B28: KAIKKI | E28: =SUM(E25:E27) -> 65 | F28: =SUM(F25:F27) -> 1 | G28: =SUM(G25:G27) -> 30 | H28: =SUM(H25:H27) -> 13 | I28: =SUM(I25:I27) -> 169 | K28: =PRODUCT((F28+G28)/E28) -> 0.48 | L28: =PRODUCT(H28/E28) -> 0.20 | M28: =PRODUCT(I28/E28) -> 2.60 | N28: =PRODUCT(I28/O28) -> 50.0 % | O28: =SUM(O25:O27) -> 337.9178142 | P28: Kunnari | R28: 07.08. 2014 JymyJussit - Kiri 2-0 (7-4, 3-0) | Z28: 53. ottelu | AD28: 23 v 5 kk 25 pv | AG28: Kunnari
O29: =SUM(O26:O28) -> 373.9178142
B30: Seurat | D30: AA = Alajärven Ankkurit (1944), kasvattajaseura
D31: KoU = Koskenkorvan Urheilijat (1945)
D32: HP-K = Haapajärven Pesä-Kiilat (1990)
D33: Kiri = Jyväskylän Kiri (1930)
D34: KiPa = Kiteen Pallo-90 (1990)
D35: LieKi = Lievestuoreen Kisa (1927)

Sheet MYP, MSS
B1: Robert Tallbacka | E1: 13.2.1991 Alajärvi
B2: YKKÖSPESIS | E2: Runkosarja | L2: Runkosarja TOP-10 | Q2: Jatkosarjat | X2: SUOMENSARJA | AA2: Runkosarja | AH2: Runkosarja TOP-10 | AM2: Jatkosarjat
B3: Vuosi | C3: Sija | D3: Seura | E3: OTT | F3: KUN | G3: LÖI | H3: TOI | I3: KL | J3: KL-% | L3: LÖI | M3: TOI | N3: L+T | O3: KL | Q3: OTT | R3: KUN | S3: LÖI | T3: TOI | U3: KL | V3: KL-% | X3: Vuosi | Y3: Sija | Z3: Seura | AA3: OTT | AB3: KUN | AC3: LÖI | AD3: TOI | AE3: KL | AF3: KL-% | AH3: LÖI | AI3: TOI | AJ3: L+T | AK3: KL | AM3: OTT | AN3: KUN | AO3: LÖI | AP3: TOI | AQ3: KL | AR3: KL-%
B4: 2008 | C4: 10. | D4: AA | E4: 10 | F4: 0 | G4: 3 | H4: 0 | I4: 15 | J4: 37.5 % | K4: 40 | X4: 2008 | Y4: 3. | Z4: KoU 2 | AA4: 0 | AB4: 0 | AC4: 0 | AD4: 0 | AE4: 0 | AM4: 3 | AN4: 0 | AO4: 0 | AP4: 1 | AQ4: 3 | AR4: 42.9 % | AS4: 7
B5: 2009 | C5: 8. | D5: AA | E5: 3 | F5: 0 | G5: 0 | H5: 0 | I5: 5 | J5: 71.4 % | K5: 7 | X5: 2009 | Y5: 10. | Z5: AA 2 | AA5: 3 | AB5: 0 | AC5: 1 | AD5: 2 | AE5: 13 | AF5: 68.4 % | AG5: 19
B6: 2010 | C6: 2. | D6: AA | E6: 13 | F6: 0 | G6: 13 | H6: 3 | I6: 34 | J6: 55.7 % | K6: 61 | Q6: 1 | R6: 0 | S6: 1 | T6: 1 | U6: 4 | V6: 50.0 % | W6: 8 | X6: 2010 | Y6: 9. | Z6: AA 2 | AA6: 2 | AB6: 2 | AC6: 2 | AD6: 5 | AE6: 15 | AF6: 62.5 % | AG6: 24
B7: 2011 | C7: 1. | D7: AA | E7: 9 | F7: 0 | G7: 3 | H7: 4 | I7: 24 | J7: 55.8 % | K7: 43
B8: 2013 | C8: 12. | D8: HP-K | E8: 8 | F8: 0 | G8: 2 | H8: 3 | I8: 36 | J8: 63.2 % | K8: 57 | X8: 2013 | Y8: 7. | Z8: AA 2 | AA8: 2 | AB8: 0 | AC8: 1 | AD8: 2 | AE8: 11 | AF8: 68.8 % | AG8: 16
B10: 2017 | C10: 8. | D10: LieKi | E10: 8 | F10: 1 | G10: 14 | H10: 2 | I10: 23 | J10: 42.6 % | K10: 54
B11: YHTEENSÄ | E11: =SUM(E4:E10) -> 51 | F11: =SUM(F4:F10) -> 1 | G11: =SUM(G4:G10) -> 35 | H11: =SUM(H4:H10) -> 12 | I11: =SUM(I4:I10) -> 137 | J11: =PRODUCT(I11/K11) -> 52.3 % | K11: =SUM(K4:K10) -> 262 | Q11: =SUM(Q4:Q10) -> 1 | R11: =SUM(R4:R10) -> 0 | S11: =SUM(S4:S10) -> 1 | T11: =SUM(T4:T10) -> 1 | U11: =SUM(U4:U10) -> 4 | V11: =PRODUCT(U11/W11) -> 50.0 % | W11: =SUM(W4:W10) -> 8 | X11: YHTEENSÄ | AA11: =SUM(AA4:AA10) -> 7 | AB11: =SUM(AB4:AB10) -> 2 | AC11: =SUM(AC4:AC10) -> 4 | AD11: =SUM(AD4:AD10) -> 9 | AE11: =SUM(AE4:AE10) -> 39 | AF11: =PRODUCT(AE11/AG11) -> 66.1 % | AG11: =SUM(AG4:AG10) -> 59 | AM11: =SUM(AM4:AM10) -> 3 | AN11: =SUM(AN4:AN10) -> 0 | AO11: =SUM(AO4:AO10) -> 0 | AP11: =SUM(AP4:AP10) -> 1 | AQ11: =SUM(AQ4:AQ10) -> 3 | AR11: =PRODUCT(AQ11/AS11) -> 42.9 % | AS11: =SUM(AS4:AS10) -> 7
B13: KAIKKI OTTELUT | E13: OTT | F13: KUN | G13: LÖI | H13: TOI | I13: KL | J13: KL-% | L13: ka/L | M13: ka/T | N13: ka/l+t | O13: ka/kl | R13: Seurat | T13: AA = Alajärven Ankkurit (1944), kasvattajaseura
B14: SUPERPESIS | E14: 65 | F14: 1 | G14: 30 | H14: 13 | I14: 169 | J14: 50.0 % | K14: =PRODUCT(I14/J14) -> 338 | L14: =PRODUCT((F14+G14)/E14) -> 0.48 | M14: =PRODUCT(H14/E14) -> 0.20 | N14: =PRODUCT((F14+G14+H14)/E14) -> 0.68 | O14: =PRODUCT(I14/E14) -> 2.60 | T14: KoU = Koskenkorvan Urheilijat (1945)
B15: YKKÖSPESIS | E15: =PRODUCT(E11+Q11) -> 52 | F15: =PRODUCT(F11+R11) -> 1 | G15: =PRODUCT(G11+S11) -> 36 | H15: =PRODUCT(H11+T11) -> 13 | I15: =PRODUCT(I11+U11) -> 141 | J15: =PRODUCT(I15/K15) -> 52.2 % | K15: =PRODUCT(K11+W11) -> 270 | L15: =PRODUCT((F15+G15)/E15) -> 0.71 | M15: =PRODUCT(H15/E15) -> 0.25 | N15: =PRODUCT((F15+G15+H15)/E15) -> 0.96 | O15: =PRODUCT(I15/E15) -> 2.71 | T15: HP-K = Haapajärven Pesä-Kiilat (1990)
B16: SUOMENSARJA | E16: =PRODUCT(AA11+AM11) -> 10 | F16: =PRODUCT(AB11+AN11) -> 2 | G16: =PRODUCT(AC11+AO11) -> 4 | H16: =PRODUCT(AD11+AP11) -> 10 | I16: =PRODUCT(AE11+AQ11) -> 42 | J16: =PRODUCT(I16/K16) -> 63.6 % | K16: =PRODUCT(AG11+AS11) -> 66 | L16: =PRODUCT((F16+G16)/E16) -> 0.60 | M16: =PRODUCT(H16/E16) -> 1.00 | N16: =PRODUCT((F16+G16+H16)/E16) -> 1.60 | O16: =PRODUCT(I16/E16) -> 4.20 | T16: Kiri = Jyväskylän Kiri (1930)
B17: YHTEENSÄ | E17: =SUM(E14:E16) -> 127 | F17: =SUM(F14:F16) -> 4 | G17: 70 | H17: 36 | I17: 352 | J17: =PRODUCT(I17/K17) -> 52.2 % | K17: =SUM(K14:K16) -> 674 | L17: =PRODUCT((F17+G17)/E17) -> 0.58 | M17: =PRODUCT(H17/E17) -> 0.28 | N17: =PRODUCT((F17+G17+H17)/E17) -> 0.87 | O17: =PRODUCT(I17/E17) -> 2.77 | T17: KiPa = Kiteen Pallo-90 (1990)
T18: LieKi = Lievestuoreen Kisa (1927)

Sheet Kärkilyönnit
B1: KÄRKILYÖNNIT RUNKOSARJASSA | V1: VUOSITTAISET SIJOITUKSET TOP - 30
G2: 0 > 1 | J2: 1 > 2 | M2: 2 > 3 | P2: 3 > k | S2: Yhteensä
B3: Vuosi | C3: Sija | D3: Seura | E3: OTT | F3: KL | G3: YHT | H3: % | I3: KL | J3: YHT | K3: % | L3: KL | M3: YHT | N3: % | O3: KL | P3: YHT | Q3: % | R3: KL | S3: YHT | T3: % | V3: Vuosi | W3: Sija | X3: Seura | Y3: 0 > 1 | Z3: 1 > 2 | AA3: 2 > 3 | AB3: 3 > k | AC3: KL
B4: 2013 | C4: 12. | D4: AA | E4: 11 | F4: 1 | G4: 2 | H4: 50.0 % | I4: 21 | J4: 30 | K4: 70.0 % | L4: 13 | M4: 27 | N4: 48.1 % | O4: 4 | P4: 12 | Q4: 33.3 % | R4: 39 | S4: 71 | T4: 54.9 % | V4: 2013 | W4: 12. | X4: AA
B5: 2014 | C5: 12. | D5: Kiri | E5: 25 | F5: 5 | G5: 13 | H5: 38.5 % | I5: 20 | J5: 46 | K5: 43.5 % | L5: 42 | M5: 74 | N5: 56.8 % | O5: 8 | P5: 18 | Q5: 44.4 % | R5: 75 | S5: 151 | T5: 49.7 % | V5: 2014 | W5: 12. | X5: Kiri | AA5: 27.
B6: **** | V6: ****
B7: 2017 | C7: 7. | D7: KiPa | E7: 22 | F7: 0 | G7: 6 | H7: 0.0 % | I7: 7 | J7: 12 | K7: 58.3 % | L7: 13 | M7: 23 | N7: 56.5 % | O7: 14 | P7: 39 | Q7: 35.9 % | R7: 34 | S7: 80 | T7: 42.5 % | V7: 2017 | W7: 7. | X7: KiPa
B8: Yhteensä | E8: =SUM(E4:E7) -> 58 | F8: =SUM(F4:F7) -> 6 | G8: =SUM(G4:G7) -> 21 | H8: =PRODUCT(F8/G8) -> 28.6 % | I8: =SUM(I4:I7) -> 48 | J8: =SUM(J4:J7) -> 88 | K8: =PRODUCT(I8/J8) -> 54.5 % | L8: =SUM(L4:L7) -> 68 | M8: =SUM(M4:M7) -> 124 | N8: =PRODUCT(L8/M8) -> 54.8 % | O8: =SUM(O4:O7) -> 26 | P8: =SUM(P4:P7) -> 69 | Q8: =PRODUCT(O8/P8) -> 37.7 % | R8: =SUM(R4:R7) -> 148 | S8: =SUM(S4:S7) -> 302 | T8: =PRODUCT(R8/S8) -> 49.0 %
B10: KÄRKILYÖNNIT YLEMMISSÄ PUDOTUSPELEISSÄ | V10: VUOSITTAISET SIJOITUKSET TOP - 30
G11: 0 > 1 | J11: 1 > 2 | M11: 2 > 3 | P11: 3 > k | S11: Yhteensä
B12: Vuosi | C12: Sija | D12: Seura | E12: OTT | F12: KL | G12: YHT | H12: % | I12: KL | J12: YHT | K12: % | L12: KL | M12: YHT | N12: % | O12: KL | P12: YHT | Q12: % | R12: KL | S12: YHT | T12: % | V12: Vuosi | W12: Sija | X12: Seura | Y12: 0 > 1 | Z12: 1 > 2 | AA12: 2 > 3 | AB12: 3 > k | AC12: KL
B13: 2017 | C13: 7. | D13: KiPa | E13: 3 | F13: 0 | G13: 0 | H13: 0.0 % | I13: 0 | J13: 1 | K13: 0.0 % | L13: 2 | M13: 3 | N13: 66.7 % | O13: 4 | P13: 8 | Q13: 50.0 % | R13: 6 | S13: 12 | T13: 50.0 % | V13: 2017 | W13: 7. | X13: KiPa | AB13: 20.
B14: Yhteensä | E14: =SUM(E11:E13) -> 3 | F14: =SUM(F13:F13) -> 0 | G14: =SUM(G13:G13) -> 0 | H14: 0.0 % | I14: =SUM(I13:I13) -> 0 | J14: =SUM(J13:J13) -> 1 | K14: =PRODUCT(I14/J14) -> 0.0 % | L14: =SUM(L13:L13) -> 2 | M14: =SUM(M13:M13) -> 3 | N14: =PRODUCT(L14/M14) -> 66.7 % | O14: =SUM(O13:O13) -> 4 | P14: =SUM(P13:P13) -> 8 | Q14: =PRODUCT(O14/P14) -> 50.0 % | R14: =SUM(R13:R13) -> 6 | S14: =SUM(S13:S13) -> 12 | T14: =PRODUCT(R14/S14) -> 50.0 %
B16: KÄRKILYÖNNIT
G17: 0 > 1 | J17: 1 > 2 | M17: 2 > 3 | P17: 3 > k | S17: Yhteensä
E18: OTT | F18: KL | G18: YHT | H18: % | I18: KL | J18: YHT | K18: % | L18: KL | M18: YHT | N18: % | O18: KL | P18: YHT | Q18: % | R18: KL | S18: YHT | T18: %
B19: RUNKOSARJA | E19: =PRODUCT(E8) -> 58 | F19: =PRODUCT(F8) -> 6 | G19: =PRODUCT(G8) -> 21 | H19: =PRODUCT(H8) -> 28.6 % | I19: =PRODUCT(I8) -> 48 | J19: =PRODUCT(J8) -> 88 | K19: =PRODUCT(K8) -> 54.5 % | L19: =PRODUCT(L8) -> 68 | M19: =PRODUCT(M8) -> 124 | N19: =PRODUCT(N8) -> 54.8 % | O19: =PRODUCT(O8) -> 26 | P19: =PRODUCT(P8) -> 69 | Q19: =PRODUCT(Q8) -> 37.7 % | R19: =PRODUCT(R8) -> 148 | S19: =PRODUCT(S8) -> 302 | T19: =PRODUCT(T8) -> 49.0 %
B20: PLAY OFF | E20: =PRODUCT(E14) -> 3 | F20: =PRODUCT(F14) -> 0 | G20: 0 | H20: 0.0 % | I20: 0 | J20: 1 | K20: 0.0 % | L20: 2 | M20: 3 | N20: 66.7 % | O20: 4 | P20: 8 | Q20: 50.0 % | R20: 6 | S20: 12 | T20: 50.0 %
